fUSD/lending_fUSD_20260505
["ID","MTS","AMOUNT","RATE_DAILY","PERIOD"]
[421599760,1777938740000,-500.0,0.00041863,120]
[421599761,1777938740000,-500.0,0.00041863,120]
[421599758,1777938740000,-593.7,0.00041863,120]
[421599766,1777938740000,-689.15,0.00041863,120]
[421599776,1777938740000,-500.0,0.00041863,120]
[421599775,1777938740000,-500.0,0.00041863,120]
[421599778,1777938740000,-500.0,0.00041863,120]
[421599777,1777938740000,-500.0,0.00041863,120]
[421599772,1777938740000,-526.93,0.00041863,120]
[421599742,1777938740000,-1783.47,0.00041863,120]
[421599764,1777938740000,-500.0,0.00041863,120]
[421599741,1777938740000,-2061.71,0.00041863,120]
[421599712,1777938740000,-500.0,0.00041863,120]
[421599734,1777938740000,-525.08,0.00041863,120]
[421599765,1777938740000,-500.0,0.00041863,120]
[421599713,1777938740000,-500.0,0.00041863,120]
[421599710,1777938740000,-500.0,0.00041863,120]
[421599711,1777938740000,-408.94,0.00041863,120]
[421599714,1777938740000,-500.0,0.00041863,120]
[421599715,1777938740000,-500.0,0.00041863,120]
[421599725,1777938740000,-1148.79,0.00041863,120]
[421599726,1777938740000,-760.4,0.00041863,120]
[421599717,1777938740000,-500.0,0.00041863,120]
[421599716,1777938740000,-500.0,0.00041863,120]
[421599722,1777938740000,-500.0,0.00041863,120]
[421599718,1777938740000,-500.0,0.00041863,120]
[421599721,1777938740000,-500.0,0.00041863,120]
[421599720,1777938740000,-500.0,0.00041863,120]
[421599719,1777938740000,-550.71,0.00041863,120]
[421599727,1777938740000,-542.72,0.00041863,120]
[421599723,1777938740000,-639.5,0.00041863,120]
[421599724,1777938740000,-554.39,0.00041863,120]
[421599728,1777938740000,-500.0,0.00041863,120]
[421599729,1777938740000,-2743.4,0.00041863,120]
[421599730,1777938740000,-500.0,0.00041863,120]
[421599739,1777938740000,-500.0,0.00041863,120]
[421599740,1777938740000,-500.0,0.00041863,120]
[421599732,1777938740000,-500.0,0.00041863,120]
[421599733,1777938740000,-500.0,0.00041863,120]
[421599738,1777938740000,-500.0,0.00041863,120]
[421599731,1777938740000,-2616.79,0.00041863,120]
[421599737,1777938740000,-500.0,0.00041863,120]
[421599736,1777938740000,-500.0,0.00041863,120]
[421599735,1777938740000,-551.61,0.00041863,120]
[421599767,1777938740000,-500.0,0.00041863,120]
[421599834,1777938740000,-183.8217714,0.00041863,120]
[421599768,1777938740000,-3866.31,0.00041863,2]
[421599806,1777938740000,-515.78,0.00041863,120]
[421599809,1777938740000,-500.0,0.00041863,120]
[421599808,1777938740000,-1948.18,0.00041863,120]
[421599811,1777938740000,-500.0,0.00041863,120]
[421599815,1777938740000,-500.0,0.00041863,120]
[421599816,1777938740000,-500.0,0.00041863,120]
[421599814,1777938740000,-373.88142343,0.00041863,120]
[421599812,1777938740000,-500.0,0.00041863,120]
[421599813,1777938740000,-500.0,0.00041863,120]
[421599810,1777938740000,-4950.15,0.00041863,120]
[421599819,1777938740000,-531.97,0.00041863,120]
[421599824,1777938740000,-500.0,0.00041863,120]
[421599818,1777938740000,-500.0,0.00041863,120]
[421599825,1777938740000,-500.0,0.00041863,120]
[421599821,1777938740000,-500.0,0.00041863,120]
[421599830,1777938740000,-500.0,0.00041863,120]
[421599826,1777938740000,-500.0,0.00041863,120]
[421599823,1777938740000,-500.0,0.00041863,120]
[421599828,1777938740000,-152.61236034,0.00041863,2]
[421599829,1777938740000,-500.0,0.00041863,120]
[421599820,1777938740000,-500.0,0.00041863,120]
[421599822,1777938740000,-7661.52,0.00041863,120]
[421599827,1777938740000,-695.23,0.00041863,120]
[421599835,1777938740000,-1683.66,0.00041863,120]
[421599831,1777938740000,-974.58,0.00041863,120]
[421599771,1777938740000,-500.0,0.00041863,120]
[421599833,1777938740000,-500.0,0.00041863,120]
[421599837,1777938740000,-539.09,0.00041863,120]
[421599836,1777938740000,-500.0,0.00041863,120]
[421599807,1777938740000,-500.0,0.00041863,120]
[421599817,1777938740000,-500.0,0.00041863,120]
[421599832,1777938740000,-500.0,0.00041863,120]
[421599802,1777938740000,-1414.82,0.00041863,120]
[421599798,1777938740000,-500.0,0.00041863,120]
[421599769,1777938740000,-169.18997207,0.00041863,120]
[421599774,1777938740000,-500.0,0.00041863,120]
[421599770,1777938740000,-500.0,0.00041863,120]
[421599790,1777938740000,-500.0,0.00041863,120]
[421599780,1777938740000,-500.0,0.00041863,120]
[421599782,1777938740000,-696.58,0.00041863,120]
[421599791,1777938740000,-1227.72,0.00041863,120]
[421599779,1777938740000,-19191.44,0.00041863,120]
[421599781,1777938740000,-500.0,0.00041863,120]
[421599783,1777938740000,-500.0,0.00041863,120]
[421599788,1777938740000,-500.0,0.00041863,120]
[421599784,1777938740000,-556.71,0.00041863,120]
[421599787,1777938740000,-500.0,0.00041863,120]
[421599773,1777938740000,-500.0,0.00041863,120]
[421599786,1777938740000,-20831.24,0.00041863,120]
[421599785,1777938740000,-500.0,0.00041863,120]
[421599799,1777938740000,-983.68,0.00041863,120]
[421599796,1777938740000,-500.0,0.00041863,120]
[421599795,1777938740000,-500.0,0.00041863,120]
[421599800,1777938740000,-16320.05,0.00041863,120]
[421599801,1777938740000,-1581.96,0.00041863,120]
[421599794,1777938740000,-2670.18,0.00041863,120]
[421599804,1777938740000,-195.69694538,0.00041863,120]
[421599789,1777938740000,-507.75,0.00041863,120]
[421599803,1777938740000,-758.08,0.00041863,120]
[421599793,1777938740000,-500.0,0.00041863,120]
[421599805,1777938740000,-500.0,0.00041863,120]
[421599797,1777938740000,-500.0,0.00041863,120]
[421599792,1777938740000,-546.18,0.00041863,120]
[421599866,1777938741000,-500.0,0.00041917,120]
[421599868,1777938741000,-533.48661872,0.00041917,120]
[421599869,1777938741000,-598.67,0.00041917,120]
[421599871,1777938741000,-500.0,0.00041917,120]
[421599867,1777938741000,-548.9,0.00041917,120]
[421599872,1777938741000,-500.0,0.00041917,120]
[421599875,1777938741000,-511.47608252,0.00041917,120]
[421599873,1777938741000,-500.0,0.00041917,120]
[421599876,1777938741000,-500.0,0.00041917,120]
[421599874,1777938741000,-500.0,0.00041917,120]
[421599870,1777938741000,-500.0,0.00041917,120]
[421599881,1777938741000,-500.0,0.00041917,120]
[421599888,1777938741000,-500.0,0.00041917,120]
[421599879,1777938741000,-500.0,0.00041917,120]
[421599889,1777938741000,-500.0,0.00041917,120]
[421599880,1777938741000,-500.0,0.00041917,120]
[421599877,1777938741000,-500.0,0.00041917,120]
[421599882,1777938741000,-355.32461851,0.00041917,120]
[421599887,1777938741000,-500.0,0.00041917,120]
[421599883,1777938741000,-500.0,0.00041917,120]
[421599885,1777938741000,-561.7,0.00041917,120]
[421599861,1777938741000,-500.0,0.00041917,120]
[421599884,1777938741000,-519.49,0.00041917,120]
[421599878,1777938741000,-500.0,0.00041917,120]
[421599863,1777938741000,-500.0,0.00041917,120]
[421599851,1777938741000,-2000.0,0.000419,61]
[421599865,1777938741000,-737.03,0.00041917,120]
[421599886,1777938741000,-500.0,0.00041917,120]
[421599843,1777938741000,-500.0,0.00041863,120]
[421599842,1777938741000,-602.25,0.00041863,120]
[421599838,1777938741000,-2126.61,0.00041863,120]
[421599839,1777938741000,-3600.11,0.00041863,120]
[421599840,1777938741000,-500.0,0.00041863,120]
[421599841,1777938741000,-500.0,0.00041863,120]
[421599844,1777938741000,-512.4,0.00041863,120]
[421599846,1777938741000,-500.0,0.00041863,120]
[421599850,1777938741000,-20509.66,0.0004188,120]
[421599845,1777938741000,-500.0,0.00041863,120]
[421599864,1777938741000,-500.0,0.00041917,120]
[421599847,1777938741000,-511.55,0.00041863,120]
[421599848,1777938741000,-500.0,0.00041863,120]
[421599854,1777938741000,-409.1,0.00041915,120]
[421599853,1777938741000,-198.27776544,0.000419,120]
[421599849,1777938741000,-2005.17944639,0.00041875,60]
[421599855,1777938741000,-500.0,0.00041917,3]
[421599856,1777938741000,-500.0,0.00041917,120]
[421599857,1777938741000,-500.0,0.00041917,120]
[421599858,1777938741000,-505.2,0.00041917,120]
[421599862,1777938741000,-500.0,0.00041917,120]
[421599859,1777938741000,-500.0,0.00041917,120]
[421599860,1777938741000,-500.0,0.00041917,120]
[421599852,1777938741000,-200.04,0.000419,120]
[421599891,1777938741000,-500.0,0.00041917,120]
[421599901,1777938741000,-500.0,0.00041917,120]
[421599932,1777938741000,-665.59,0.00041917,120]
[421599920,1777938741000,-501.59,0.00041917,2]
[421599918,1777938741000,-500.0,0.00041917,120]
[421599921,1777938741000,-500.0,0.00041917,120]
[421599924,1777938741000,-500.0,0.00041917,120]
[421599922,1777938741000,-538.86,0.00041917,120]
[421599927,1777938741000,-500.0,0.00041917,120]
[421599928,1777938741000,-500.0,0.00041917,120]
[421599931,1777938741000,-681.79,0.00041917,120]
[421599930,1777938741000,-500.0,0.00041917,120]
[421599938,1777938741000,-699.56,0.00041917,120]
[421599929,1777938741000,-500.0,0.00041917,120]
[421599935,1777938741000,-574.3,0.00041917,120]
[421599936,1777938741000,-506.44,0.00041917,120]
[421599933,1777938741000,-500.0,0.00041917,120]
[421599934,1777938741000,-500.0,0.00041917,120]
[421599937,1777938741000,-500.0,0.00041917,120]
[421599940,1777938741000,-500.0,0.00041917,120]
[421599941,1777938741000,-500.0,0.00041917,120]
[421599944,1777938741000,-562.94,0.00041917,120]
[421599939,1777938741000,-1005.04,0.00041917,120]
[421599943,1777938741000,-537.82,0.00041917,120]
[421599942,1777938741000,-500.0,0.00041917,120]
[421599890,1777938741000,-525.42,0.00041917,120]
[421599923,1777938741000,-500.0,0.00041917,2]
[421599917,1777938741000,-500.0,0.00041917,120]
[421599919,1777938741000,-500.0,0.00041917,120]
[421599925,1777938741000,-500.0,0.00041917,120]
[421599898,1777938741000,-521.41486718,0.00041917,120]
[421599895,1777938741000,-563.4,0.00041917,120]
[421599900,1777938741000,-500.0,0.00041917,120]
[421599897,1777938741000,-1714.86,0.00041917,120]
[421599896,1777938741000,-500.0,0.00041917,120]
[421599894,1777938741000,-500.0,0.00041917,120]
[421599892,1777938741000,-563.3,0.00041917,120]
[421599926,1777938741000,-500.0,0.00041917,120]
[421599893,1777938741000,-500.0,0.00041917,120]
[421599903,1777938741000,-500.0,0.00041917,120]
[421599913,1777938741000,-500.0,0.00041917,120]
[421599904,1777938741000,-500.0,0.00041917,120]
[421599902,1777938741000,-500.0,0.00041917,120]
[421599899,1777938741000,-500.0,0.00041917,120]
[421599906,1777938741000,-500.0,0.00041917,7]
[421599905,1777938741000,-500.0,0.00041917,120]
[421599907,1777938741000,-500.0,0.00041917,120]
[421599908,1777938741000,-500.0,0.00041917,120]
[421599909,1777938741000,-500.0,0.00041917,120]
[421599911,1777938741000,-500.0,0.00041917,120]
[421599912,1777938741000,-500.0,0.00041917,120]
[421599910,1777938741000,-500.0,0.00041917,120]
[421599914,1777938741000,-1025.94,0.00041917,120]
[421599915,1777938741000,-500.0,0.00041917,120]
[421599916,1777938741000,-558.58,0.00041917,120]
[421599987,1777938742000,-500.0,0.00041917,120]
[421599986,1777938742000,-500.0,0.00041917,120]
[421599985,1777938742000,-782.2,0.00041917,120]
[421599982,1777938742000,-500.0,0.00041917,120]
[421599983,1777938742000,-617.91,0.00041917,120]
[421599980,1777938742000,-500.0,0.00041917,120]
[421599981,1777938742000,-539.94,0.00041917,120]
[421599979,1777938742000,-500.0,0.00041917,120]
[421599988,1777938742000,-500.0,0.00041917,120]
[421599977,1777938742000,-600.64,0.00041917,120]
[421599989,1777938742000,-579.73,0.00041917,120]
[421599984,1777938742000,-189.06451184,0.00041917,120]
[421599991,1777938742000,-500.0,0.00041917,120]
[421600006,1777938742000,-554.39,0.00041917,120]
[421599993,1777938742000,-500.0,0.00041917,120]
[421599995,1777938742000,-543.62,0.00041917,120]
[421599994,1777938742000,-500.0,0.00041917,120]
[421599999,1777938742000,-500.0,0.00041917,120]
[421599990,1777938742000,-500.0,0.00041917,120]
[421600000,1777938742000,-500.0,0.00041917,120]
[421599998,1777938742000,-500.0,0.00041917,120]
[421599997,1777938742000,-500.0,0.00041917,120]
[421599950,1777938742000,-500.0,0.00041917,120]
[421600002,1777938742000,-500.0,0.00041917,120]
[421600003,1777938742000,-500.0,0.00041917,120]
[421600005,1777938742000,-639.5,0.00041917,120]
[421599978,1777938742000,-500.0,0.00041917,120]
[421599992,1777938742000,-500.0,0.00041917,120]
[421599973,1777938742000,-500.0,0.00041917,120]
[421599945,1777938742000,-500.0,0.00041917,120]
[421599974,1777938742000,-500.0,0.00041917,120]
[421599952,1777938742000,-500.0,0.00041917,120]
[421599951,1777938742000,-562.44,0.00041917,120]
[421599947,1777938742000,-1415.03,0.00041917,120]
[421599946,1777938742000,-500.0,0.00041917,120]
[421599948,1777938742000,-500.0,0.00041917,120]
[421599949,1777938742000,-500.0,0.00041917,120]
[421599953,1777938742000,-500.0,0.00041917,120]
[421599955,1777938742000,-500.0,0.00041917,120]
[421599954,1777938742000,-533.31,0.00041917,120]
[421599956,1777938742000,-500.0,0.00041917,120]
[421599957,1777938742000,-500.0,0.00041917,120]
[421599958,1777938742000,-500.0,0.00041917,120]
[421599960,1777938742000,-569.37,0.00041917,120]
[421599959,1777938742000,-500.0,0.00041917,120]
[421599961,1777938742000,-500.0,0.00041917,120]
[421599962,1777938742000,-500.0,0.00041917,120]
[421599963,1777938742000,-500.0,0.00041917,120]
[421599975,1777938742000,-514.29,0.00041917,120]
[421599965,1777938742000,-574.17,0.00041917,120]
[421599976,1777938742000,-500.0,0.00041917,120]
[421599964,1777938742000,-500.0,0.00041917,120]
[421599970,1777938742000,-500.0,0.00041917,120]
[421599968,1777938742000,-513.16,0.00041917,120]
[421599967,1777938742000,-500.83,0.00041917,120]
[421599966,1777938742000,-738.47,0.00041917,120]
[421599972,1777938742000,-500.0,0.00041917,120]
[421599969,1777938742000,-500.0,0.00041917,120]
[421599971,1777938742000,-421.85425535,0.00041917,120]
[421600004,1777938742000,-500.0,0.00041917,120]
[421599996,1777938742000,-500.0,0.00041917,120]
[421600008,1777938742000,-760.4,0.00041917,120]
[421600048,1777938742000,-500.0,0.00041917,120]
[421600038,1777938742000,-682.65,0.00041917,120]
[421600041,1777938742000,-500.0,0.00041917,120]
[421600045,1777938742000,-689.15,0.00041917,120]
[421600043,1777938742000,-500.0,0.00041917,120]
[421600042,1777938742000,-500.0,0.00041917,120]
[421600046,1777938742000,-500.0,0.00041917,120]
[421600044,1777938742000,-500.0,0.00041917,120]
[421600047,1777938742000,-3866.31,0.00041917,2]
[421600049,1777938742000,-500.0,0.00041917,120]
[421600052,1777938742000,-500.0,0.00041917,120]
[421600058,1777938742000,-500.0,0.00041917,120]
[421600051,1777938742000,-500.0,0.00041917,120]
[421600060,1777938742000,-696.58,0.00041917,120]
[421600056,1777938742000,-500.0,0.00041917,120]
[421600053,1777938742000,-500.0,0.00041917,120]
[421600057,1777938742000,-19191.44,0.00041917,120]
[421600050,1777938742000,-526.93,0.00041917,120]
[421600054,1777938742000,-500.0,0.00041917,120]
[421600061,1777938742000,-500.0,0.00041917,120]
[421600055,1777938742000,-500.0,0.00041917,120]
[421600062,1777938742000,-556.71,0.00041917,120]
[421600059,1777938742000,-500.0,0.00041917,120]
[421600065,1777938742000,-500.0,0.00041917,120]
[421600064,1777938742000,-20831.24,0.00041917,120]
[421600066,1777938742000,-500.0,0.00041917,120]
[421600012,1777938742000,-500.0,0.00041917,120]
[421600040,1777938742000,-500.0,0.00041917,120]
[421600037,1777938742000,-593.7,0.00041917,120]
[421600063,1777938742000,-500.0,0.00041917,120]
[421600035,1777938742000,-500.0,0.00041917,5]
[421600039,1777938742000,-500.0,0.00041917,120]
[421600001,1777938742000,-550.71,0.00041917,120]
[421600009,1777938742000,-542.72,0.00041917,120]
[421600010,1777938742000,-500.0,0.00041917,120]
[421600011,1777938742000,-2743.4,0.00041917,120]
[421600014,1777938742000,-500.0,0.00041917,120]
[421600024,1777938742000,-1783.47,0.00041917,120]
[421600025,1777938742000,-562.00518029,0.00041917,120]
[421600015,1777938742000,-500.0,0.00041917,120]
[421600013,1777938742000,-2616.79,0.00041917,120]
[421600016,1777938742000,-525.08,0.00041917,120]
[421600019,1777938742000,-500.0,0.00041917,120]
[421600022,1777938742000,-500.0,0.00041917,120]
[421600017,1777938742000,-551.61,0.00041917,120]
[421600007,1777938742000,-1148.79,0.00041917,120]
[421600021,1777938742000,-500.0,0.00041917,120]
[421600031,1777938742000,-550.98,0.00041917,120]
[421600018,1777938742000,-500.0,0.00041917,120]
[421600030,1777938742000,-525.03,0.00041917,120]
[421600034,1777938742000,-500.0,0.00041917,120]
[421600033,1777938742000,-500.66,0.00041917,120]
[421600032,1777938742000,-1185.59,0.00041917,120]
[421600027,1777938742000,-500.0,0.00041917,120]
[421600029,1777938742000,-527.86,0.00041917,120]
[421600028,1777938742000,-500.0,0.00041917,120]
[421600023,1777938742000,-2061.71,0.00041917,120]
[421600020,1777938742000,-500.0,0.00041917,120]
[421600026,1777938742000,-500.0,0.00041917,120]
[421600036,1777938742000,-1111.02,0.00041917,120]
[421600102,1777938743000,-500.0,0.00041917,120]
[421600113,1777938743000,-3600.11,0.00041917,120]
[421600106,1777938743000,-974.58,0.00041917,120]
[421600103,1777938743000,-695.23,0.00041917,120]
[421600099,1777938743000,-500.0,0.00041917,120]
[421600096,1777938743000,-500.0,0.00041917,120]
[421600091,1777938743000,-500.0,0.00041917,120]
[421600114,1777938743000,-500.0,0.00041917,120]
[421600093,1777938743000,-500.0,0.00041917,120]
[421600098,1777938743000,-7661.52,0.00041917,120]
[421600105,1777938743000,-500.0,0.00041917,120]
[421600111,1777938743000,-539.09,0.00041917,120]
[421600107,1777938743000,-500.0,0.00041917,120]
[421600108,1777938743000,-500.0,0.00041917,120]
[421600110,1777938743000,-500.0,0.00041917,120]
[421600109,1777938743000,-1683.66,0.00041917,120]
[421600112,1777938743000,-2126.61,0.00041917,120]
[421600119,1777938743000,-500.0,0.00041917,120]
[421600117,1777938743000,-500.0,0.00041917,120]
[421600115,1777938743000,-500.0,0.00041917,120]
[421600116,1777938743000,-602.25,0.00041917,120]
[421600126,1777938743000,-500.0,0.00041972,120]
[421600089,1777938743000,-500.0,0.00041917,120]
[421600104,1777938743000,-500.0,0.00041917,120]
[421600092,1777938743000,-500.0,0.00041917,120]
[421600076,1777938743000,-500.0,0.00041917,120]
[421600094,1777938743000,-500.0,0.00041917,120]
[421600070,1777938743000,-546.18,0.00041917,120]
[421600067,1777938743000,-507.75,0.00041917,120]
[421600074,1777938743000,-500.0,0.00041917,120]
[421600068,1777938743000,-500.0,0.00041917,120]
[421600073,1777938743000,-500.0,0.00041917,120]
[421600072,1777938743000,-2670.18,0.00041917,120]
[421600069,1777938743000,-1227.72,0.00041917,120]
[421600071,1777938743000,-500.0,0.00041917,120]
[421600075,1777938743000,-500.0,0.00041917,120]
[421600086,1777938743000,-500.0,0.00041917,120]
[421600079,1777938743000,-1581.96,0.00041917,120]
[421600081,1777938743000,-758.08,0.00041917,120]
[421600077,1777938743000,-983.68,0.00041917,120]
[421600127,1777938743000,-376.03588703,0.00041972,120]
[421600078,1777938743000,-16320.05,0.00041917,120]
[421600088,1777938743000,-500.0,0.00041917,120]
[421600080,1777938743000,-1414.82,0.00041917,120]
[421600087,1777938743000,-4950.15,0.00041917,120]
[421600082,1777938743000,-500.0,0.00041917,120]
[421600084,1777938743000,-500.0,0.00041917,120]
[421600085,1777938743000,-1948.18,0.00041917,120]
[421600083,1777938743000,-515.78,0.00041917,120]
[421600095,1777938743000,-531.97,0.00041917,120]
[421600090,1777938743000,-500.0,0.00041917,120]
[421600101,1777938743000,-500.0,0.00041917,120]
[421600100,1777938743000,-500.0,0.00041917,120]
[421600124,1777938743000,-200.0,0.00041934,2]
[421600097,1777938743000,-500.0,0.00041917,120]
[421600122,1777938743000,-500.0,0.00041917,120]
[421600154,1777938743000,-525.42,0.00041972,120]
[421600156,1777938743000,-563.3,0.00041972,120]
[421600155,1777938743000,-530.5877878,0.00041972,120]
[421600161,1777938743000,-1714.86,0.00041972,120]
[421600157,1777938743000,-500.0,0.00041972,120]
[421600158,1777938743000,-500.0,0.00041972,120]
[421600164,1777938743000,-500.0,0.00041972,120]
[421600159,1777938743000,-563.4,0.00041972,120]
[421600160,1777938743000,-563.82192507,0.00041972,120]
[421600162,1777938743000,-500.0,0.00041972,120]
[421600163,1777938743000,-500.0,0.00041972,120]
[421600166,1777938743000,-500.0,0.00041972,120]
[421600165,1777938743000,-204.48121997,0.00041972,120]
[421600167,1777938743000,-500.0,0.00041972,120]
[421600169,1777938743000,-500.0,0.00041972,120]
[421600168,1777938743000,-500.0,0.00041972,120]
[421600173,1777938743000,-500.0,0.00041972,120]
[421600170,1777938743000,-500.0,0.00041972,120]
[421600172,1777938743000,-500.0,0.00041972,120]
[421600175,1777938743000,-558.58,0.00041972,120]
[421600171,1777938743000,-500.0,0.00041972,120]
[421600174,1777938743000,-1025.94,0.00041972,120]
[421600177,1777938743000,-500.0,0.00041972,120]
[421600176,1777938743000,-500.0,0.00041972,120]
[421600125,1777938743000,-500.0,0.00041972,3]
[421600153,1777938743000,-500.0,0.00041972,120]
[421600149,1777938743000,-561.7,0.00041972,120]
[421600118,1777938743000,-512.4,0.00041917,120]
[421600148,1777938743000,-519.49,0.00041972,120]
[421600152,1777938743000,-500.0,0.00041972,120]
[421600123,1777938743000,-700.0,0.00041922,120]
[421600120,1777938743000,-500.0,0.00041917,120]
[421600121,1777938743000,-511.55,0.00041917,120]
[421600129,1777938743000,-500.0,0.00041972,120]
[421600139,1777938743000,-500.0,0.00041972,120]
[421600131,1777938743000,-500.0,0.00041972,120]
[421600132,1777938743000,-500.0,0.00041972,120]
[421600130,1777938743000,-500.0,0.00041972,120]
[421600134,1777938743000,-737.03,0.00041972,120]
[421600137,1777938743000,-598.67,0.00041972,120]
[421600138,1777938743000,-500.0,0.00041972,120]
[421600128,1777938743000,-505.2,0.00041972,120]
[421600136,1777938743000,-548.9,0.00041972,120]
[421600151,1777938743000,-233.88319069,0.00041972,120]
[421600135,1777938743000,-500.0,0.00041972,120]
[421600147,1777938743000,-168.29,0.00041972,120]
[421600146,1777938743000,-500.0,0.00041972,120]
[421600145,1777938743000,-500.0,0.00041972,120]
[421600144,1777938743000,-500.0,0.00041972,120]
[421600142,1777938743000,-500.0,0.00041972,120]
[421600143,1777938743000,-500.0,0.00041972,120]
[421600140,1777938743000,-500.0,0.00041972,120]
[421600141,1777938743000,-500.0,0.00041972,120]
[421600133,1777938743000,-500.0,0.00041972,120]
[421600150,1777938743000,-500.0,0.00041972,120]
[421600247,1777938744000,-500.0,0.00041972,120]
[421600254,1777938744000,-1148.79,0.00041972,120]
[421600257,1777938744000,-2743.4,0.00041972,120]
[421600249,1777938744000,-500.0,0.00041972,120]
[421600253,1777938744000,-554.39,0.00041972,120]
[421600255,1777938744000,-760.4,0.00041972,120]
[421600250,1777938744000,-500.0,0.00041972,120]
[421600252,1777938744000,-639.5,0.00041972,120]
[421600251,1777938744000,-500.0,0.00041972,120]
[421600256,1777938744000,-542.72,0.00041972,120]
[421600259,1777938744000,-2616.79,0.00041972,120]
[421600260,1777938744000,-500.0,0.00041972,120]
[421600248,1777938744000,-550.71,0.00041972,120]
[421600258,1777938744000,-500.0,0.00041972,120]
[421600246,1777938744000,-500.0,0.00041972,120]
[421600232,1777938744000,-201.38,0.00041972,120]
[421600243,1777938744000,-500.0,0.00041972,120]
[421600234,1777938744000,-617.91,0.00041972,120]
[421600227,1777938744000,-514.29,0.00041972,120]
[421600228,1777938744000,-500.0,0.00041972,120]
[421600231,1777938744000,-500.0,0.00041972,120]
[421600229,1777938744000,-600.64,0.00041972,120]
[421600267,1777938744000,-2061.71,0.00041972,120]
[421600235,1777938744000,-782.2,0.00041972,120]
[421600236,1777938744000,-153.58185639,0.00041972,120]
[421600238,1777938744000,-500.0,0.00041972,120]
[421600239,1777938744000,-500.0,0.00041972,120]
[421600241,1777938744000,-500.0,0.00041972,120]
[421600242,1777938744000,-500.0,0.00041972,120]
[421600237,1777938744000,-500.0,0.00041972,120]
[421600240,1777938744000,-500.0,0.00041972,120]
[421600245,1777938744000,-500.0,0.00041972,120]
[421600244,1777938744000,-199.32,0.00041972,120]
[421600261,1777938744000,-525.08,0.00041972,120]
[421600275,1777938744000,-1185.59,0.00041972,120]
[421600270,1777938744000,-500.0,0.00041972,120]
[421600280,1777938744000,-593.7,0.00041972,120]
[421600282,1777938744000,-500.0,0.00041972,120]
[421600287,1777938744000,-689.15,0.00041972,120]
[421600286,1777938744000,-500.0,0.00041972,120]
[421600289,1777938744000,-3866.31,0.00041972,2]
[421600291,1777938744000,-500.0,0.00041972,120]
[421600279,1777938744000,-682.65,0.00041972,120]
[421600290,1777938744000,-500.0,0.00041972,120]
[421600288,1777938744000,-500.0,0.00041972,120]
[421600293,1777938744000,-510.95,0.00041972,120]
[421600294,1777938744000,-248.83,0.00041972,120]
[421600296,1777938744000,-500.0,0.00041972,120]
[421600297,1777938744000,-500.0,0.00041972,120]
[421600233,1777938744000,-539.94,0.00041972,120]